Cogmind - Beta 12 @@@ ROGUE MODE // 2023.06.09 @ 10:54:19 Player: Mr Goldstein Result: Destroyed by as-27199 with Assembled F-torch Performance ------------- Evolutions (0) 0 Regions Visited (4) 800 Robots Destroyed (3) 15 Value Destroyed (40) 40 Prototype IDs (1) 20 Alien Tech Used (0) 0 Bonus (0) 0 TOTAL SCORE: 875 Bonus ------- None Cogmind --------- Core Integrity 0/250 Matter 199/300 Energy 69/100 System Corruption 5% Temperature Cool (20) Movement Core (50) Location -9/Mines Parts ------- > --- POWER (1) -------- (None) > --- PROPULSION (2) --- (None) > --- UTILITY (2) ------ (None) > --- WEAPON (2) ------- (None) > --- INVENTORY (5) ---- Experimental Sensor Array Peak State ------------ > --- POWER ------------ (None) > --- PROPULSION ------- (None) > --- UTILITY ---------- Experimental Sensor Array Light Armor Plating > --- WEAPON ----------- (None) > --- INVENTORY -------- Grenade Launcher [Rating: 10] Favorites ----------- Power None Propulsion Flight Unit Flight Unit Flight Unit Utility Light Armor Plating Device Experimental Sensor Array Protection Light Armor Plating Weapon Grenade Launcher Launcher Grenade Launcher Build | -11 -10 -10 -10 -9 ------- Run | Jun Mat Min Exi Min Slots Evolved . | . . . . . Power . | . . . . . Propulsion . | . . . . . Utility . | . . . . . Weapon . | . . . . . Parts Attached 6 | . 1 4 . 1 Power . | . . . . . Engine . | . . . . . Core . | . . . . . Reactor . | . . . . . Propulsion 2 | . . 2 . . Treads . | . . . . . Leg . | . . . . . Wheel . | . . . . . Hover . | . . . . . Flight 2 | . . 2 . . Utility 2 | . 1 1 . . Device 1 | . . 1 . . Storage . | . . . . . Processor . | . . . . . Hackware . | . . . . . Protection 1 | . 1 . . . Artifact . | . . . . . Weapon 2 | . . 1 . 1 Energy Gun . | . . . . . Energy Cannon . | . . . . . Ballistic Gun . | . . . . . Ballistic Cannon . | . . . . . Launcher 2 | . . 1 . 1 Special Weapon . | . . . . . Impact Weapon . | . . . . . Slashing Weapon . | . . . . . Piercing Weapon . | . . . . . Special Melee Weapon . | . . . . . Unidentified Prototypes 1 | . . 1 . . Parts Lost 3 | . . . . 3 Power . | . . . . . Propulsion 2 | . . . . 2 Utility 1 | . . . . 1 Weapon . | . . . . . Highest Loss Streak 3 | . . . . 3 To Critical Strikes . | . . . . . Average Slot Usage (%) 26 | . 10 24 42 36 Flight 13 | . . 9 28 25 Protection 11 | . 10 14 14 8 Launcher 1 | . . 1 . 2 Naked Turns 22 | . 16 . . 6 Heaviest Build 3 | . 3 3 3 3 Greatest Support 8 | 3 3 8 8 8 Greatest Overweight (x) . | . . . . . Average Overweight (x) . | . . . . . Largest Inventory Capacity 5 | 5 5 5 5 5 Average Capacity 5 | 5 5 5 5 5 Most Carried 2 | . 1 2 2 2 Average Carried 1 | . . 1 2 1 Final Capacity 5 | 5 5 5 5 5 Final Carried 2 | . 1 2 2 1 Class Distribution -------------------- 100% | Mutant Dominant Class ---------------- Mutant | -10/Materials Mutant | -10/Mines Mutant | -10/Exiles Mutant | -9/Mines Resources | -11 -10 -10 -10 -9 ----------- Run | Jun Mat Min Exi Min Matter Collected 224 | 200 . 24 . . Remotely . | . . . . . Salvage Created 57 | . . 19 . 38 Parts 4 | . . 4 . . Haulers Intercepted . | . . . . . Recyclers Shooed . | . . . . . Parts Field Recycled . | . . . . . Retrieved Matter . | . . . . . Parts Self-Destructed . | . . . . . Prevented . | . . . . . Kills | -11 -10 -10 -10 -9 ------- Run | Jun Mat Min Exi Min Combat Hostiles Destroyed 15 | . . 3 . 12 AOE 15 | . . 3 . 12 Classes Destroyed 2 | . . 1 . 1 Swarmer 3 | . . 3 . . Assembled 12 | . . . . 12 Best Kill Streak 12 | . . 3 . 12 Combat Bots Only 12 | . . 3 . 12 Max Kills in Single Turn 4 | . . 3 . 4 Gunslinging . | . . . . . Exploded 4 | . . 3 . 4 Melee . | . . . . . Uniques/NPCs Destroyed . | . . . . . Combat | -11 -10 -10 -10 -9 -------- Run | Jun Mat Min Exi Min Damage Taken 434 | . 41 88 . 305 Core 257 | . 6 27 . 224 Absorbed by Shields . | . . . . . Core Remaining (%) 100 | 100 . . . . Volleys Fired 8 | . . 1 . 7 Largest 1 | . . 1 . 1 Hottest 30 | . . 30 . 30 Shots Fired 8 | . . 1 . 7 Gun . | . . . . . Cannon . | . . . . . Launcher 8 | . . 1 . 7 Special . | . . . . . Kinetic . | . . . . . Thermal . | . . . . . Explosive 8 | . . 1 . 7 Electromagnetic . | . . . . . Robot Hit Streak . | . . . . . Robot Miss Streak . | . . . . . Penetration Max . | . . . . . Secondary Targets . | . . . . . Shots Hit Robots . | . . . . . Core Hits 32 | . . 3 . 29 Critical Kills . | . . . . . Critical Parts Destroyed . | . . . . . Critical Strikes . | . . . . . Melee Attacks . | . . . . . Impact . | . . . . . Slashing . | . . . . . Piercing . | . . . . . Sneak Attacks . | . . . . . Combat Hostiles . | . . . . . Follow-up Attacks . | . . . . . Damage Inflicted 1115 | . . 140 . 975 Guns . | . . . . . Cannons . | . . . . . Explosions 1115 | . . 140 . 975 Melee . | . . . . . Ramming . | . . . . . Kinetic . | . . . . . Thermal . | . . . . . Explosive 1115 | . . 140 . 975 Electromagnetic . | . . . . . Impact . | . . . . . Slashing . | . . . . . Piercing . | . . . . . Highest Corruption 5 | . . . . 5 Average Corruption 5 | . . . . 5 Corruption Purged . | . . . . . Corruption Blocked . | . . . . . Effects 1 | . . . . 1 Energy Discharges 1 | . . . . 1 Overload Shots . | . . . . . Overflow Damage 83 | . . . . 83 Projectiles . | . . . . . Explosions 83 | . . . . 83 Melee . | . . . . . Knockbacks . | . . . . . Impact . | . . . . . Kinetic . | . . . . . Secondary . | . . . . . Self-Inflicted Damage 36 | . . . . 36 Shots 2 | . . . . 2 Rammed . | . . . . . Targets Rammed . | . . . . . Kicked . | . . . . . Crushed . | . . . . . Highest Temperature 12 | . . . . 12 Average Temperature 8 | . . . . 8 Received Heat Transfer 102 | . . 42 . 60 Siege Activations . | . . . . . Robots Corrupted . | . . . . . Combat Hostiles . | . . . . . Parts Fried . | . . . . . Impact Corruptions . | . . . . . Robots Melted . | . . . . . Combat Hostiles . | . . . . . Parts Melted . | . . . . . Heat Transferred . | . . . . . Parts Sabotaged . | . . . . . Parts Stolen . | . . . . . Parts Stripped . | . . . . . Power Chain Reactions . | . . . . . Missiles Intercepted . | . . . . . Alert | -11 -10 -10 -10 -9 ------- Run | Jun Mat Min Exi Min Peak Influence 119 | . 36 119 . 25 Initial 13 | . . 13 . . Average 29 | . 13 56 . 5 Maximum Alert Level . | . . . . . Low Security (%) 100 | 100 100 100 . 100 Level 1 . | . . . . . Level 2 . | . . . . . Level 3 . | . . . . . Level 4 . | . . . . . Level 5 . | . . . . . High Security . | . . . . . Max Security . | . . . . . Squads Dispatched 1 | . 1 . . . Investigation . | . . . . . Extermination . | . . . . . Reinforcement 1 | . 1 . . . Assault . | . . . . . Garrison . | . . . . . Intercept . | . . . . . Searches Triggered . | . . . . . Construction Impeded . | . . . . . Haulers Reinforced . | . . . . . Active Scanning Responses . | . . . . . Cargo Convoy Interrupts . | . . . . . Stealth | -11 -10 -10 -10 -9 --------- Run | Jun Mat Min Exi Min Distress Signals . | . . . . . Communications Jammed . | . . . . . Distress Signals . | . . . . . Times Spotted 29 | . 4 5 . 20 Peak Tracking Total 20 | . 6 3 . 20 Tactical Retreats 1 | . . 1 . . Traps | -11 -10 -10 -10 -9 ------- Run | Jun Mat Min Exi Min Traps Triggered . | . . . . . Indirectly . | . . . . . Trap Hack Attempts . | . . . . . Triggered . | . . . . . Disarmed . | . . . . . Reprogrammed . | . . . . . Reused . | . . . . . Traps Extracted . | . . . . . Installed . | . . . . . Triggered . | . . . . . Machines | -11 -10 -10 -10 -9 ---------- Run | Jun Mat Min Exi Min Machines Disabled 1 | . . . . 1 Max in Single Turn 1 | . . . . 1 Machines Repaired . | . . . . . Machines Sabotaged . | . . . . . Overloaded Fab Kills . | . . . . . Hacking | -11 -10 -10 -10 -9 --------- Run | Jun Mat Min Exi Min Machines Accessed 3 | . 2 . 1 . Terminals 2 | . 2 . . . Fabricators . | . . . . . Repair Stations . | . . . . . Recycling Units . | . . . . . Scanalyzers . | . . . . . Garrison Access . | . . . . . Total Hacks 7 | . 6 . 1 . Successful 2 | . 1 . 1 . Failed 5 | . 5 . . . Catastrophic 1 | . 1 . . . Database Lockouts . | . . . . . Manual 6 | . 6 . . . Terminals 6 | . 6 . . . Fabricators . | . . . . . Repair Stations . | . . . . . Recycling Units . | . . . . . Scanalyzers . | . . . . . Garrison Access . | . . . . . Terminal Hacks 2 | . 1 . 1 . Record 1 | . . . 1 . Robot Analysis 1 | . 1 . . . Fabricator Hacks . | . . . . . Repair Station Hacks . | . . . . . Recycling Unit Hacks . | . . . . . Scanalyzer . | . . . . . Garrison Access Hacks . | . . . . . Unauthorized Hacks . | . . . . . Terminals . | . . . . . Fabricators . | . . . . . Repair Stations . | . . . . . Recycling Units . | . . . . . Scanalyzers . | . . . . . Garrison Access . | . . . . . Data Cores Recovered . | . . . . . Used . | . . . . . Hacking Detections 2 | . 2 . . . Full Trace Events 2 | . 2 . . . Feedback Events . | . . . . . Feedback Blocked . | . . . . . Robot Schematics Acquired . | . . . . . Robots Built . | . . . . . Authchips . | . . . . . Time . | . . . . . Total Robot Build Rating . | . . . . . Part Schematics Acquired . | . . . . . Parts Built . | . . . . . Authchips . | . . . . . Time . | . . . . . Total Part Build Rating . | . . . . . Parts Repaired . | . . . . . Time . | . . . . . Parts Recycled . | . . . . . Recycled Matter . | . . . . . Retrieved Matter . | . . . . . Retrieved Components . | . . . . . Parts Scanalyzed . | . . . . . Part Schematics Acquired . | . . . . . Parts Damaged . | . . . . . Bothacking | -11 -10 -10 -10 -9 ------------ Run | Jun Mat Min Exi Min Used RIF Installer . | . . . . . Robots Hacked . | . . . . . Non-combat . | . . . . . Combat . | . . . . . Robot Hacks Applied . | . . . . . Relay Couplers Released . | . . . . . Fabnet Peak Effective % . | . . . . . Robots Rewired . | . . . . . Allies Hacked . | . . . . . Hacks Repelled . | . . . . . Allies | -11 -10 -10 -10 -9 -------- Run | Jun Mat Min Exi Min Total Allies 3 | . . . . 3 Largest Group 3 | . . . . 3 Highest-Rated Group 40 | . . . . 40 Highest-Rated Ally 16 | . . . . 16 Total Orders . | . . . . . Ally Attacks 4 | . . . . 4 Total Damage 11 | . . . . 11 Kills . | . . . . . Allies Corrupted . | . . . . . Allies Melted . | . . . . . Intel | -11 -10 -10 -10 -9 ------- Run | Jun Mat Min Exi Min Robot Analysis Total 1 | . 1 . . . Derelict Logs Recovered 2 | . . 1 . 1 Drone Launches . | . . . . . Drone Recoveries . | . . . . . Exploration | -11 -10 -10 -10 -9 ------------- Run | Jun Mat Min Exi Min Turns Passed 276 | 17 62 98 49 50 Spaces Moved 576 | 35 119 202 131 89 Core 280 | 35 119 115 . 11 Treads . | . . . . . Legs . | . . . . . Wheels . | . . . . . Hover . | . . . . . Flight 296 | . . 87 131 78 Fastest Speed 37 | 50 50 37 37 37 Average Speed 43 | 50 50 44 37 38 Slowest Speed 50 | 50 50 50 37 50 Overloaded Moves . | . . . . . Propulsion Burnouts . | . . . . . Robots Hopped 1 | . . . . 1 Cave-ins Triggered . | . . . . . Exploration Rate (%) 34 | 3 29 58 50 34 Regions Visited 4 Branch Regions 3 Pre-discovered Areas 1 | . . . 1 . Known Exits Taken . | . . . . . Unknown Exits Taken 4 | 1 1 1 1 . Scrap Searched 1 | . . 1 . . Spaces Dug 10 | . . 6 . 4 Terrain Destroyed 38 | . . 6 . 32 Melee . | . . . . . Projectile . | . . . . . AOE 38 | . . 6 . 32 Terrain Rammed . | . . . . . Walls Destroyed . | . . . . . Machines Disabled . | . . . . . Actions | -11 -10 -10 -10 -9 --------- Run | Jun Mat Min Exi Min Total 588 | 34 120 208 130 96 Wait . | . . . . . Move 570 | 34 118 201 130 87 Hop 1 | . . . . 1 Pick Up 1 | . 1 . . . Fast Attach 4 | . 1 3 . . Attach 2 | . . 1 . 1 Detach 2 | . . 2 . . Swap . | . . . . . Drop . | . . . . . Fire 8 | . . 1 . 7 Melee . | . . . . . Ram . | . . . . . Kick . | . . . . . Crush . | . . . . . Escape Stasis . | . . . . . Rewire . | . . . . . Trap . | . . . . . Miscellaneous . | . . . . . Route ------- -11/Junkyard -10/Materials -10/Mines (discovered 2 exits: Mat / *Exi) -10/Exiles (discovered 2 exits: [*Min x2]) -9/Mines History --------- Turn | Location | Event 2 | -11/Junkyard | Discovered new exit (range 16) 18 | -11/Junkyard | Entered Materials 77 | -10/Materials | Discovered new exit (range 8) 80 | -10/Materials | Entered Mines 127 | -10/Mines | Found a damaged Exp. Sensor Array with a note attached 128 | -10/Mines | Found Prototype Device 128 | -10/Mines | Identified Exp. Sensor Array 135 | -10/Mines | Identified exit to Materials 177 | -10/Mines | Deemed a non-threat by the Exiles lab entrance 177 | -10/Mines | Discovered new exit (range 5) 178 | -10/Mines | Entered Exiles 184 | -10/Exiles | Discovered new exit (range 15) 188 | -10/Exiles | Met 8R-AWN 194 | -10/Exiles | Met EX-HEX 208 | -10/Exiles | Met EX-DEC 211 | -10/Exiles | Learned location of Zion (-7) 221 | -10/Exiles | Discovered new exit (range 15) 227 | -10/Exiles | Entered Mines 228 | -9/Mines | Assisted by bots powering up and referring to "LRC-V3" 231 | -9/Mines | Learned Materials emergency access door positions 246 | -9/Mines | Assembled infested the area 265 | -9/Mines | Core integrity fell below 50% 272 | -9/Mines | Core integrity fell below 20% 277 | -9/Mines | Destroyed by as-27199 with Assembled F-torch Last Messages --------------- 00267_ as-52861 destroyed. 00267_ Destroyed Asb. F-torch. 00267_ as-03207 destroyed. 00267_ Destroyed Asb. Hover Unit. 00267_ as-12759 destroyed. 00267_ as-36739 destroyed. 00267_ Destroyed Asb. Hover Unit. 00269_ Matter Pump disabled. 00269_ Destroyed Asb. Hover Unit. 00269_ Flight Unit destroyed. 00269_ Destroyed Flight Unit. 00269_ Grenade Launcher severed. 00269_ T-07 Excavator is excavating. 00270_ as-97513 destroyed. 00271_ The unstable cave ceiling collapses. 00271_ Flight Unit destroyed. 00271_ System corrupted by crushing effect (+5). 00273_ The unstable cave ceiling collapses. 00274_ System corrupted: Energy discharge (-40). 00274_ The unstable cave ceiling collapses. Map ----- +----------------------------------------------------+ | ??????????????## ### ##???????????? | | ???????????????# ###??? ##????????????? | | ???????????????# #?????? #?????????????? | | ???????????????# #???????? ##?????????????? | | ???????????????# #????????????????????????? | | ???????????????# ########?????????????????? | | ???????????????# #?????????????????? | | ???????????????# #?????????????????? | | ???????????????######## #?????????????????? | | ??????????????????????# #?????????????????? | | ??????????????????????# ########??????????? | | ??????????????????????# #???????? | | ?????????????????????? ######??????????? | | ??????????####???????? ##?????????????? | | ?????????## #??????# ##????????????? | | ?????????# ##???## #????????????? | | ????###### #### #????????????? | | ???## ## ## ##????????????? | | ???# ## #?????????????? | | ???# #??### ##????????????? | | ???# #?###### # ##?????????? | | ??## #?## ?????? | | ??# #### # ?????? | | ??# ## % a ## #### ??????? | | ??# % a ###### #???? ??????? | | ??# % a @ #????? #????????????? | | ??## ] a # #????? ???????????? | | ???## a # #????? $ ??????????? | | ????# ### #####?????##### ????????? | | ????## ###?###????????????????????????? | | ????# #??????????????????????????????? | | ???# """ ##??????????????????????????????? | | ??# """ #???????????????????????????????? | | ??# #???????????????????????????????? | | ??# ???????????????????????????????? | | ??## ??????????????????????????????? | | ???## ### ??????????????????????????????? | | ????## #??????????????????????????????????? | | ?????####??????????????????????????????????? | | ???????????????????????????????????????????? | | ???????????????????????????????????????????? | | | | | | | | | | | | | | | | | | | +----------------------------------------------------+ Best States ------------- Heat Dissipation 25 Energy Generation 5 Energy Capacity 100 Matter Stores 300 Matter Capacity 300 Sight Range 16 Terrain Scan Density 10 Armor Coverage 150 Evasion (%) 62 Item Schematics ----------------- None Robot Schematics ------------------ None Fabricated ------------ Nothing Alien Tech Used ----------------- None Achievements -------------- None Challenges ------------ None Game ------ Seed RegenerativeModifiedCutter Manual? 0 Play Time 00:04:10 Cumulative 283.5 hours Start 2023.06.09 @ 10:43:06 End 2023.06.09 @ 10:54:19 Sessions 1 Manual Loads 0 Difficulty Rogue Special Mode None Game No. 835 Rogue 835 Adventurer 0 Explorer 0 Win Type - Total 17 Types 8/0/7/2/0/0/0/0/0 Lore% 90 Gallery% 87 Achievement% 79 Wizard Run 0 Options --------- ASCII 0 Keyboard 0 Movement Numpad Keybinds 0 Fullscreen 1 Font 16/SmallcapsGlow Map View 75x55 Tactical HUD 1 Map Filters NONE Filters NONE Steam 1 RUN: 2dbc97ab-9323-4a17-bac4-d87485cd6bf0